[Event "Live Chess"]
[Site "Chess.com"]
[Date "2021.02.28"]
[Round "-"]
[White "Alsmman, Batoul"]
[Black "Heron, Andy"]
[Result "1/2-1/2"]
[BlackElo "1291"]
[CurrentPosition "8/6pk/8/p3P1p1/1b2q3/5N1P/3p3K/5Q2 b - -"]
[ECO "C00"]
[ECOUrl "https://www.chess.com/openings/French-Defense-Steiner-Variation"]
[EndDate "2021.02.28"]
[EndTime "11:58:55"]
[Link "https://www.chess.com/live/game/8249702047"]
[StartTime "11:16:03"]
[Termination "Game drawn by agreement"]
[TimeControl "1500+10"]
[Timezone "UTC"]
[UTCDate "2021.02.28"]
[UTCTime "11:16:03"]
[WhiteElo "803"]

1. e4 { [%clk 0:25:10] } 1... e6 { [%clk 0:25:10] } 2. c4 { [%clk 0:25:16.4] } 2... c5 { [%clk 0:24:46.4] } 3. Nf3 { [%clk 0:25:22.5] } 3... Nc6 { [%clk 0:24:10.4] } 4. d3 { [%clk 0:25:27.8] } 4... e5 { [%clk 0:23:19.3] } 5. Be3 { [%clk 0:25:31.9] } 5... d6 { [%clk 0:23:12.6] } 6. Be2 { [%clk 0:25:35.3] } 6... Be7 { [%clk 0:22:23.7] } 7. O-O { [%clk 0:25:42.2] } 7... Nd4 { [%clk 0:21:46] } 8. Bxd4 { [%clk 0:25:48.1] } 8... cxd4 { [%clk 0:21:48.1] } 9. a3 { [%clk 0:25:43.6] } 9... Nf6 { [%clk 0:21:13.7] } 10. b4 { [%clk 0:25:50.5] } 10... Bg4 { [%clk 0:20:24.6] } 11. c5 { [%clk 0:25:53.6] } 11... Bxf3 { [%clk 0:20:07.2] } 12. Bxf3 { [%clk 0:25:58.7] } 12... dxc5 { [%clk 0:19:38.6] } 13. bxc5 { [%clk 0:25:26.5] } 13... Bxc5 { [%clk 0:19:25.5] } 14. Nd2 { [%clk 0:25:00.9] } 14... O-O { [%clk 0:17:55.9] } 15. Nc4 { [%clk 0:24:59.9] } 15... Re8 { [%clk 0:17:22.8] } 16. a4 { [%clk 0:24:51.9] } 16... a6 { [%clk 0:16:35.6] } 17. Rb1 { [%clk 0:24:51.6] } 17... Rb8 { [%clk 0:16:26.9] } 18. Qb3 { [%clk 0:24:26.7] } 18... Qc7 { [%clk 0:15:34.2] } 19. Be2 { [%clk 0:24:22.8] } 19... h6 { [%clk 0:15:07] } 20. f4 { [%clk 0:24:19.3] } 20... b5 { [%clk 0:14:22] } 21. Nxe5 { [%clk 0:23:20.6] } 21... bxa4 { [%clk 0:12:55.2] } 22. Qxa4 { [%clk 0:22:58.1] } 22... Rxb1 { [%clk 0:12:15.5] } 23. Rxb1 { [%clk 0:22:22.4] } 23... a5 { [%clk 0:11:16.9] } 24. Nf3 { [%clk 0:22:18.3] } 24... Qxf4 { [%clk 0:09:41.3] } 25. e5 { [%clk 0:22:13] } 25... Qe3+ { [%clk 0:09:20.3] } 26. Kh1 { [%clk 0:21:53.2] } 26... Ng4 { [%clk 0:09:09] } 27. Qxe8+ { [%clk 0:21:54.2] } 27... Kh7 { [%clk 0:09:16.2] } 28. Re1 { [%clk 0:20:45.3] } 28... Nf2+ { [%clk 0:09:15.6] } 29. Kg1 { [%clk 0:20:31.4] } 29... Ng4+ { [%clk 0:09:11.9] } 30. Kh1 { [%clk 0:20:36] } 30... Nf2+ { [%clk 0:09:05] } 31. Kg1 { [%clk 0:20:42.6] } 31... Nxd3+ { [%clk 0:09:04] } 32. Kh1 { [%clk 0:20:30.4] } 32... Nf4 { [%clk 0:08:56.8] } 33. Qxf7 { [%clk 0:20:20.5] } 33... Nxe2 { [%clk 0:08:56.3] } 34. Qf5+ { [%clk 0:19:52.8] } 34... Kg8 { [%clk 0:08:47] } 35. h3 { [%clk 0:19:21.4] } 35... d3 { [%clk 0:08:31.5] } 36. Qc8+ { [%clk 0:18:35.7] } 36... Bf8 { [%clk 0:08:38.5] } 37. Rf1 { [%clk 0:18:27.8] } 37... Ng3+ { [%clk 0:08:36.5] } 38. Kh2 { [%clk 0:18:28.2] } 38... Nxf1+ { [%clk 0:08:43.6] } 39. Kh1 { [%clk 0:18:20.1] } 39... d2 { [%clk 0:08:28] } 40. Qc4+ { [%clk 0:18:12] } 40... Kh7 { [%clk 0:08:19] } 41. Qxf1 { [%clk 0:18:19.6] } 41... Bb4 { [%clk 0:07:38.7] } 42. g4 { [%clk 0:17:59.5] } 42... Qe4 { [%clk 0:07:23.1] } 43. g5 { [%clk 0:17:41.8] } 43... hxg5 { [%clk 0:07:11] } 44. Kh2 { [%clk 0:17:39.4] } 44... Qf4+ { [%clk 0:07:01.1] } 45. Kh1 { [%clk 0:16:23.1] } 45... Qe4 { [%clk 0:06:44.8] } 46. Kh2 { [%clk 0:16:17.3] } 1/2-1/2

[Event "Live Chess"]
[Site "Chess.com"]
[Date "2021.02.28"]
[Round "-"]
[White "Goss-Pastor, Alexander"]
[Black "Kardar, Zaem"]
[Result "1-0"]
[BlackElo "1152"]
[CurrentPosition "6Q1/8/1B4Q1/7k/8/4PKP1/7P/8 b - -"]
[ECO "A10"]
[ECOUrl "https://www.chess.com/openings/English-Opening-Anglo-Dutch-Defense-2.Nc3-Nf6-3.g3"]
[EndDate "2021.02.28"]
[EndTime "12:10:39"]
[Link "https://www.chess.com/live/game/8249704547"]
[StartTime "11:15:41"]
[Termination "BoredIsolater won by checkmate"]
[TimeControl "1500+10"]
[Timezone "UTC"]
[UTCDate "2021.02.28"]
[UTCTime "11:15:41"]
[WhiteElo "1745"]

1. c4 { [%clk 0:25:10] } 1... f5 { [%clk 0:25:10] } 2. Nc3 { [%clk 0:25:18.2] } 2... Nf6 { [%clk 0:25:17.3] } 3. g3 { [%clk 0:25:26.2] } 3... e5 { [%clk 0:25:22.3] } 4. Bg2 { [%clk 0:25:33.9] } 4... g6 { [%clk 0:25:29.1] } 5. e3 { [%clk 0:25:42.3] } 5... Bg7 { [%clk 0:25:37.2] } 6. Nge2 { [%clk 0:25:50.7] } 6... O-O { [%clk 0:25:44.1] } 7. O-O { [%clk 0:25:59.2] } 7... Nc6 { [%clk 0:25:46.8] } 8. d4 { [%clk 0:25:54.7] } 8... e4 { [%clk 0:25:47.4] } 9. f3 { [%clk 0:25:42.6] } 9... d5 { [%clk 0:25:30] } 10. cxd5 { [%clk 0:24:54.1] } 10... Nxd5 { [%clk 0:25:37.2] } 11. fxe4 { [%clk 0:24:31.5] } 11... fxe4 { [%clk 0:25:45.1] } 12. Rxf8+ { [%clk 0:22:50.3] } 12... Bxf8 { [%clk 0:25:48.2] } 13. Bxe4 { [%clk 0:22:12] } 13... Nf6 { [%clk 0:24:33.6] } 14. Bxc6 { [%clk 0:20:50.8] } 14... bxc6 { [%clk 0:24:32.6] } 15. Nf4 { [%clk 0:17:33.8] } 15... Bg4 { [%clk 0:23:22.9] } 16. Qf1 { [%clk 0:16:47.5] } 16... g5 { [%clk 0:22:24.1] } 17. Ng2 { [%clk 0:14:24] } 17... c5 { [%clk 0:19:56] } 18. dxc5 { [%clk 0:13:04] } 18... Bxc5 { [%clk 0:19:59.8] } 19. Qc4+ { [%clk 0:12:38.5] } 19... Kg7 { [%clk 0:14:45.7] } 20. Qxc5 { [%clk 0:12:17.3] } 20... Bf3 { [%clk 0:13:49] } 21. Qxg5+ { [%clk 0:11:30] } 21... Kf8 { [%clk 0:12:16.6] } 22. Qc5+ { [%clk 0:10:01] } 22... Kf7 { [%clk 0:11:46.3] } 23. Qd4 { [%clk 0:09:45.4] } 23... c6 { [%clk 0:10:05] } 24. Qxd8 { [%clk 0:06:54.1] } 24... Rxd8 { [%clk 0:10:11] } 25. Nf4 { [%clk 0:06:48.7] } 25... Ne4 { [%clk 0:09:42.7] } 26. Nxe4 { [%clk 0:06:32.9] } 26... Bxe4 { [%clk 0:09:21] } 27. b3 { [%clk 0:05:11.4] } 27... Rd1+ { [%clk 0:09:26.8] } 28. Kf2 { [%clk 0:05:17.3] } 28... Kf6 { [%clk 0:09:29.8] } 29. Bb2+ { [%clk 0:05:24.9] } 29... Kf5 { [%clk 0:08:23.3] } 30. Rxd1 { [%clk 0:05:30.9] } 30... Kg4 { [%clk 0:08:20.7] } 31. Rd4 { [%clk 0:05:05.9] } 31... Kf5 { [%clk 0:08:06.9] } 32. Rxe4 { [%clk 0:04:51.9] } 32... Kxe4 { [%clk 0:08:16.8] } 33. Bd4 { [%clk 0:04:56.2] } 33... a5 { [%clk 0:08:07.8] } 34. Bb6 { [%clk 0:04:45.3] } 34... a4 { [%clk 0:07:47.4] } 35. bxa4 { [%clk 0:04:53.7] } 35... h6 { [%clk 0:07:16.1] } 36. a5 { [%clk 0:04:56.9] } 36... Ke5 { [%clk 0:07:13.6] } 37. Kf3 { [%clk 0:04:41.9] } 37... Kf5 { [%clk 0:06:55.7] } 38. a6 { [%clk 0:04:45.6] } 38... Kg5 { [%clk 0:07:04.2] } 39. a7 { [%clk 0:04:38.9] } 39... h5 { [%clk 0:07:12.5] } 40. Nxh5 { [%clk 0:04:41.4] } 40... Kxh5 { [%clk 0:07:20.1] } 41. a8=Q { [%clk 0:04:46.6] } 41... Kg5 { [%clk 0:06:16.3] } 42. Qg8+ { [%clk 0:04:40.6] } 42... Kh5 { [%clk 0:05:55.8] } 43. a4 { [%clk 0:04:36.9] } 43... Kh6 { [%clk 0:05:51.1] } 44. a5 { [%clk 0:04:45.2] } 44... Kh5 { [%clk 0:06:00.4] } 45. a6 { [%clk 0:04:53.2] } 45... Kh6 { [%clk 0:06:10.3] } 46. a7 { [%clk 0:05:01.9] } 46... Kh5 { [%clk 0:06:15.8] } 47. a8=Q { [%clk 0:05:01] } 47... Kh6 { [%clk 0:06:16.8] } 48. Qxc6+ { [%clk 0:05:09.3] } 48... Kh5 { [%clk 0:06:19.6] } 49. Qcg6# { [%clk 0:05:17.4] } 1-0

[Event "Live Chess"]
[Site "Chess.com"]
[Date "2021.02.28"]
[Round "-"]
[White "McLaurin, Murdo"]
[Black "Cruickshank, Darren"]
[Result "0-1"]
[BlackElo "1549"]
[CurrentPosition "7R/4k3/8/6p1/K7/7P/1r6/q7 w - -"]
[ECO "B12"]
[ECOUrl "https://www.chess.com/openings/Caro-Kann-Defense-Advance-Botvinnik-Carls-Defense"]
[EndDate "2021.02.28"]
[EndTime "15:17:20"]
[Link "https://www.chess.com/live/game/8259920913"]
[StartTime "14:05:21"]
[Termination "TheLionRampant won by checkmate"]
[TimeControl "1500+10"]
[Timezone "UTC"]
[UTCDate "2021.02.28"]
[UTCTime "14:05:21"]
[WhiteElo "1454"]

1. e4 { [%clk 0:25:10] } 1... c6 { [%clk 0:25:10] } 2. d4 { [%clk 0:25:17] } 2... d5 { [%clk 0:25:19] } 3. e5 { [%clk 0:25:26.5] } 3... c5 { [%clk 0:25:28.2] } 4. c3 { [%clk 0:25:34.8] } 4... Nc6 { [%clk 0:25:37.5] } 5. Nf3 { [%clk 0:25:44.3] } 5... Bg4 { [%clk 0:25:46.9] } 6. Be2 { [%clk 0:25:52.2] } 6... e6 { [%clk 0:25:53.6] } 7. h3 { [%clk 0:26:00.2] } 7... Bxf3 { [%clk 0:26:00] } 8. Bxf3 { [%clk 0:26:08.6] } 8... Qb6 { [%clk 0:25:52.7] } 9. dxc5 { [%clk 0:22:30.8] } 9... Bxc5 { [%clk 0:25:59] } 10. Qe2 { [%clk 0:21:18.1] } 10... Qc7 { [%clk 0:24:43.1] } 11. Bf4 { [%clk 0:20:27.3] } 11... Nge7 { [%clk 0:24:49.3] } 12. Bh5 { [%clk 0:17:49.9] } 12... O-O { [%clk 0:23:09.2] } 13. O-O { [%clk 0:17:29.2] } 13... h6 { [%clk 0:19:44.1] } 14. Nd2 { [%clk 0:16:36.2] } 14... Nf5 { [%clk 0:18:20] } 15. Bg4 { [%clk 0:15:41.1] } 15... Nce7 { [%clk 0:17:04.2] } 16. Nf3 { [%clk 0:14:55.1] } 16... Ng6 { [%clk 0:16:47.6] } 17. Bh2 { [%clk 0:14:00.7] } 17... Nfe7 { [%clk 0:16:52.7] } 18. Nd4 { [%clk 0:13:51.8] } 18... Qb6 { [%clk 0:15:50.1] } 19. Rad1 { [%clk 0:12:46.7] } 19... Nc6 { [%clk 0:15:33.2] } 20. Nxc6 { [%clk 0:11:20.2] } 20... bxc6 { [%clk 0:15:43.1] } 21. b4 { [%clk 0:11:03.8] } 21... Be7 { [%clk 0:15:45.4] } 22. Bg3 { [%clk 0:10:12.6] } 22... Rfc8 { [%clk 0:15:24.3] } 23. Bh5 { [%clk 0:09:43.8] } 23... c5 { [%clk 0:13:05.9] } 24. Bxg6 { [%clk 0:09:30.6] } 24... fxg6 { [%clk 0:13:15.8] } 25. a3 { [%clk 0:09:08.6] } 25... cxb4 { [%clk 0:12:51.4] } 26. cxb4 { [%clk 0:09:05.8] } 26... a5 { [%clk 0:12:57.4] } 27. Qg4 { [%clk 0:08:17.4] } 27... g5 { [%clk 0:12:52.8] } 28. Rb1 { [%clk 0:07:35.9] } 28... axb4 { [%clk 0:12:46.4] } 29. axb4 { [%clk 0:07:41.3] } 29... Ra4 { [%clk 0:12:16.2] } 30. Kh1 { [%clk 0:06:19.6] } 30... Rxb4 { [%clk 0:12:17.4] } 31. Rxb4 { [%clk 0:06:25.6] } 31... Qxb4 { [%clk 0:12:26.8] } 32. Qxb4 { [%clk 0:06:33.8] } 32... Bxb4 { [%clk 0:12:35.5] } 33. f3 { [%clk 0:06:16.6] } 33... Bd2 { [%clk 0:12:10.5] } 34. Rb1 { [%clk 0:05:16.8] } 34... Rc7 { [%clk 0:10:16.1] } 35. Rb6 { [%clk 0:04:58.7] } 35... Kf7 { [%clk 0:10:23.6] } 36. Rb2 { [%clk 0:04:43.4] } 36... Bf4 { [%clk 0:10:00.9] } 37. Kh2 { [%clk 0:04:27.9] } 37... Kg6 { [%clk 0:09:44.8] } 38. Rb6 { [%clk 0:04:01.1] } 38... Kf5 { [%clk 0:09:47.3] } 39. Bxf4 { [%clk 0:03:08.4] } 39... gxf4 { [%clk 0:09:54] } 40. Rb8 { [%clk 0:03:09.8] } 40... Kxe5 { [%clk 0:09:11] } 41. Rf8 { [%clk 0:03:15.1] } 41... Rd7 { [%clk 0:09:12.6] } 42. Kg1 { [%clk 0:03:20.6] } 42... d4 { [%clk 0:09:16.3] } 43. Kf2 { [%clk 0:03:29.1] } 43... d3 { [%clk 0:09:23.4] } 44. Ke1 { [%clk 0:03:37.8] } 44... Rd4 { [%clk 0:08:53] } 45. Kd2 { [%clk 0:03:40.9] } 45... g5 { [%clk 0:07:20.1] } 46. Rh8 { [%clk 0:03:46.8] } 46... Kf5 { [%clk 0:06:05] } 47. Rxh6 { [%clk 0:03:51.4] } 47... e5 { [%clk 0:06:13.7] } 48. Rh8 { [%clk 0:03:58.6] } 48... Rd5 { [%clk 0:03:46.6] } 49. Ra8 { [%clk 0:03:24.8] } 49... e4 { [%clk 0:03:41.1] } 50. fxe4+ { [%clk 0:03:07.3] } 50... Kxe4 { [%clk 0:03:48.2] } 51. Re8+ { [%clk 0:03:06.9] } 51... Kf5 { [%clk 0:03:37.2] } 52. Ra8 { [%clk 0:02:50.8] } 52... Ke4 { [%clk 0:03:11.3] } 53. Re8+ { [%clk 0:02:49.4] } 53... Kd4 { [%clk 0:03:20] } 54. Ra8 { [%clk 0:02:33.5] } 54... Ke5 { [%clk 0:03:07.3] } 55. Ra3 { [%clk 0:01:50.1] } 55... Rb5 { [%clk 0:02:33.8] } 56. Kxd3 { [%clk 0:01:41.9] } 56... Rb2 { [%clk 0:02:37.7] } 57. Ra5+ { [%clk 0:01:49.9] } 57... Kf6 { [%clk 0:02:43.8] } 58. Ra6+ { [%clk 0:01:55.9] } 58... Kg7 { [%clk 0:02:50.4] } 59. Ra7+ { [%clk 0:01:59.6] } 59... Kh6 { [%clk 0:02:58.5] } 60. Ra6+ { [%clk 0:01:28.1] } 60... Kh5 { [%clk 0:03:05.3] } 61. g3 { [%clk 0:01:29.4] } 61... fxg3 { [%clk 0:03:11.3] } 62. Ke4 { [%clk 0:01:15.2] } 62... Rf2 { [%clk 0:03:17.2] } 63. Ra8 { [%clk 0:01:08.9] } 63... Kh6 { [%clk 0:01:00.3] } 64. Ra6+ { [%clk 0:00:52.1] } 64... Kg7 { [%clk 0:01:08.8] } 65. Ra7+ { [%clk 0:01:00.8] } 65... Kf6 { [%clk 0:01:17.7] } 66. Ra6+ { [%clk 0:01:09.3] } 66... Ke7 { [%clk 0:01:26.8] } 67. Ke5 { [%clk 0:00:42] } 67... g2 { [%clk 0:00:57.2] } 68. Ra7+ { [%clk 0:00:48.4] } 68... Kd8 { [%clk 0:01:04.5] } 69. Kd6 { [%clk 0:00:52.2] } 69... Rd2+ { [%clk 0:01:12.9] } 70. Kc6 { [%clk 0:00:58.2] } 70... g1=Q { [%clk 0:01:14.9] } 71. Ra8+ { [%clk 0:01:07] } 71... Ke7 { [%clk 0:01:22.9] } 72. Rh8 { [%clk 0:01:16.4] } 72... Qc1+ { [%clk 0:01:24] } 73. Kb5 { [%clk 0:01:25.1] } 73... Rb2+ { [%clk 0:01:33.9] } 74. Ka4 { [%clk 0:01:34.2] } 74... Qa1# { [%clk 0:01:43.8] } 0-1

[Event "Live Chess"]
[Site "Chess.com"]
[Date "2021.02.28"]
[Round "-"]
[White "Bobak, Cosmo"]
[Black "Lazell, Ruben"]
[Result "1-0"]
[BlackElo "1391"]
[CurrentPosition "r2k1Q2/ppp3p1/2b2b2/4p3/2Pp4/2P5/PP3PPP/3RR1K1 b - -"]
[ECO "C42"]
[ECOUrl "https://www.chess.com/openings/Petrovs-Defense-Urusov-Lichtenhein-Defense-4.Nc3"]
[EndDate "2021.02.28"]
[EndTime "14:19:19"]
[Link "https://www.chess.com/live/game/8259889725"]
[StartTime "14:03:39"]
[Termination "chaeronanaut won by resignation"]
[TimeControl "1500+10"]
[Timezone "UTC"]
[UTCDate "2021.02.28"]
[UTCTime "14:03:39"]
[WhiteElo "1358"]

1. e4 { [%clk 0:25:10] } 1... e5 { [%clk 0:25:10] } 2. Nf3 { [%clk 0:25:11.8] } 2... Nf6 { [%clk 0:25:18.5] } 3. Bc4 { [%clk 0:25:02.8] } 3... Nxe4 { [%clk 0:25:20.6] } 4. Nc3 { [%clk 0:25:08.9] } 4... Nxc3 { [%clk 0:24:04.9] } 5. dxc3 { [%clk 0:25:18.8] } 5... Bd6 { [%clk 0:22:36.9] } 6. Ng5 { [%clk 0:25:20.3] } 6... Qe7 { [%clk 0:22:03.1] } 7. Bxf7+ { [%clk 0:24:32.6] } 7... Kd8 { [%clk 0:22:02.7] } 8. Bc4 { [%clk 0:24:10.1] } 8... Rf8 { [%clk 0:21:35] } 9. Nxh7 { [%clk 0:23:00.5] } 9... Rh8 { [%clk 0:21:29] } 10. Bg5 { [%clk 0:23:08.3] } 10... Rxh7 { [%clk 0:21:26.8] } 11. Bxe7+ { [%clk 0:23:11.6] } 11... Bxe7 { [%clk 0:21:36.7] } 12. O-O { [%clk 0:23:13.1] } 12... Nc6 { [%clk 0:21:33.4] } 13. Qd5 { [%clk 0:22:36.3] } 13... Rh8 { [%clk 0:21:32.3] } 14. Rfe1 { [%clk 0:22:16.2] } 14... d6 { [%clk 0:21:22.9] } 15. Bb5 { [%clk 0:21:58.9] } 15... Bd7 { [%clk 0:20:59.7] } 16. Bxc6 { [%clk 0:22:04.2] } 16... Bxc6 { [%clk 0:21:09.6] } 17. Qf7 { [%clk 0:21:42.9] } 17... Bf6 { [%clk 0:21:08.2] } 18. Rad1 { [%clk 0:21:23.5] } 18... d5 { [%clk 0:20:45.4] } 19. c4 { [%clk 0:21:11.3] } 19... d4 { [%clk 0:20:39.7] } 20. c3 { [%clk 0:21:01.4] } 20... Rf8 { [%clk 0:20:41.6] } 21. Qxf8+ { [%clk 0:20:48.3] } 1-0

[Event "Live Chess"]
[Site "Chess.com"]
[Date "2021.02.28"]
[Round "-"]
[White "Howarth, Ned"]
[Black "Whisson, Max"]
[Result "1-0"]
[BlackElo "1185"]
[CurrentPosition "4rk2/2p2Q2/p1Pp2pN/2b5/8/1P5P/P3RPPK/5q2 b - -"]
[ECO "C70"]
[ECOUrl "https://www.chess.com/openings/Ruy-Lopez-Opening-Morphy-Defense-Deferred-Classical-Defense"]
[EndDate "2021.02.28"]
[EndTime "14:36:17"]
[Link "https://www.chess.com/live/game/8259881181"]
[StartTime "14:02:47"]
[Termination "lamina314 won by checkmate"]
[TimeControl "1500+10"]
[Timezone "UTC"]
[UTCDate "2021.02.28"]
[UTCTime "14:02:47"]
[WhiteElo "1483"]

1. e4 { [%clk 0:25:10] } 1... e5 { [%clk 0:25:10] } 2. Nf3 { [%clk 0:25:18.2] } 2... Nc6 { [%clk 0:25:12.5] } 3. Bb5 { [%clk 0:25:26] } 3... a6 { [%clk 0:25:16.4] } 4. Ba4 { [%clk 0:25:33.8] } 4... Bc5 { [%clk 0:25:21.3] } 5. c3 { [%clk 0:25:40.1] } 5... d6 { [%clk 0:25:02.1] } 6. d4 { [%clk 0:25:44.7] } 6... exd4 { [%clk 0:24:59.4] } 7. cxd4 { [%clk 0:25:53.3] } 7... Ba7 { [%clk 0:24:50.7] } 8. d5 { [%clk 0:25:22.2] } 8... b5 { [%clk 0:24:57.8] } 9. dxc6 { [%clk 0:25:01.7] } 9... bxa4 { [%clk 0:25:03.3] } 10. Qxa4 { [%clk 0:24:53.3] } 10... Bc5 { [%clk 0:25:02.2] } 11. O-O { [%clk 0:24:52.7] } 11... Nf6 { [%clk 0:24:55.3] } 12. Bg5 { [%clk 0:24:00.7] } 12... O-O { [%clk 0:24:48] } 13. h3 { [%clk 0:23:54.6] } 13... h6 { [%clk 0:24:29] } 14. Bxf6 { [%clk 0:23:34.6] } 14... Qxf6 { [%clk 0:24:35] } 15. Nc3 { [%clk 0:23:42.5] } 15... Be6 { [%clk 0:23:55.8] } 16. Qc2 { [%clk 0:23:11.3] } 16... Qg6 { [%clk 0:22:21.5] } 17. Nh4 { [%clk 0:21:12.2] } 17... Qf6 { [%clk 0:21:55.1] } 18. Nf5 { [%clk 0:20:37.9] } 18... Rfd8 { [%clk 0:21:02.1] } 19. Nd5 { [%clk 0:20:26.6] } 19... Bxd5 { [%clk 0:20:29.3] } 20. exd5 { [%clk 0:20:33.2] } 20... Rab8 { [%clk 0:20:30.5] } 21. b3 { [%clk 0:20:27] } 21... Re8 { [%clk 0:20:14.5] } 22. Rfe1 { [%clk 0:19:40.9] } 22... Rxe1+ { [%clk 0:20:07.5] } 23. Rxe1 { [%clk 0:19:48.5] } 23... Qg5 { [%clk 0:18:17.8] } 24. Ng3 { [%clk 0:18:28.3] } 24... Qxd5 { [%clk 0:18:12.6] } 25. Qe4 { [%clk 0:16:39.3] } 25... Qd2 { [%clk 0:17:52] } 26. Re2 { [%clk 0:16:27.9] } 26... Qc1+ { [%clk 0:16:55.9] } 27. Kh2 { [%clk 0:16:35.9] } 27... Qd1 { [%clk 0:15:32.8] } 28. Nf5 { [%clk 0:16:17.2] } 28... Qf1 { [%clk 0:13:43.8] } 29. Qg4 { [%clk 0:15:45.1] } 29... g6 { [%clk 0:13:24.8] } 30. Nxh6+ { [%clk 0:14:50.3] } 30... Kf8 { [%clk 0:13:09.7] } 31. Qf3 { [%clk 0:14:13.6] } 31... Re8 { [%clk 0:12:55.5] } 32. Qxf7# { [%clk 0:14:20.3] } 1-0

[Event "Live Chess"]
[Site "Chess.com"]
[Date "2021.02.28"]
[Round "-"]
[White "Meadows, Henri"]
[Black "Alsmman, Batoul"]
[Result "1-0"]
[BlackElo "795"]
[CurrentPosition "2Q5/Q6p/4pkp1/p3bp2/P7/8/5PPP/6K1 b - -"]
[ECO "D00"]
[ECOUrl "https://www.chess.com/openings/Queens-Pawn-Opening-1...d5"]
[EndDate "2021.02.28"]
[EndTime "14:19:02"]
[Link "https://www.chess.com/live/game/8259939101"]
[StartTime "14:06:49"]
[Termination "H8M9 won by resignation"]
[TimeControl "1500+10"]
[Timezone "UTC"]
[UTCDate "2021.02.28"]
[UTCTime "14:06:49"]
[WhiteElo "1012"]

1. d4 { [%clk 0:25:10] } 1... d5 { [%clk 0:25:10] } 2. b3 { [%clk 0:25:07.5] } 2... Nf6 { [%clk 0:25:02.1] } 3. Bb2 { [%clk 0:25:14.8] } 3... c5 { [%clk 0:25:08.1] } 4. Nf3 { [%clk 0:25:14.2] } 4... Bf5 { [%clk 0:25:12.4] } 5. Nbd2 { [%clk 0:25:18] } 5... e6 { [%clk 0:25:21] } 6. c3 { [%clk 0:25:23.6] } 6... Bd6 { [%clk 0:25:16.3] } 7. e3 { [%clk 0:25:31.5] } 7... c4 { [%clk 0:25:19.6] } 8. bxc4 { [%clk 0:25:36.9] } 8... dxc4 { [%clk 0:25:27.8] } 9. Bxc4 { [%clk 0:25:44.5] } 9... Nc6 { [%clk 0:25:29.6] } 10. O-O { [%clk 0:25:52.2] } 10... O-O { [%clk 0:25:36.9] } 11. a4 { [%clk 0:25:51.1] } 11... a5 { [%clk 0:25:37.1] } 12. Ba3 { [%clk 0:25:52.6] } 12... Bc7 { [%clk 0:25:42.7] } 13. Bxf8 { [%clk 0:25:59.4] } 13... Qxf8 { [%clk 0:25:49.3] } 14. Rb1 { [%clk 0:25:57.4] } 14... Qd6 { [%clk 0:25:53.8] } 15. Rxb7 { [%clk 0:25:56.2] } 15... Bd8 { [%clk 0:25:39.2] } 16. e4 { [%clk 0:25:51.5] } 16... Bxe4 { [%clk 0:25:42.5] } 17. Re1 { [%clk 0:25:13.5] } 17... Bxf3 { [%clk 0:25:47.7] } 18. Nxf3 { [%clk 0:25:21] } 18... Rb8 { [%clk 0:25:15.6] } 19. Rxb8 { [%clk 0:25:20] } 19... Nxb8 { [%clk 0:25:19.5] } 20. Ba2 { [%clk 0:25:15.3] } 20... Bc7 { [%clk 0:25:17.1] } 21. Bb1 { [%clk 0:25:15.5] } 21... g6 { [%clk 0:25:21.2] } 22. c4 { [%clk 0:25:00.5] } 22... Ng4 { [%clk 0:25:26.9] } 23. Ne5 { [%clk 0:24:45.1] } 23... Nf6 { [%clk 0:24:44.6] } 24. c5 { [%clk 0:24:47.9] } 24... Qd5 { [%clk 0:24:41.7] } 25. Be4 { [%clk 0:24:53] } 25... Nxe4 { [%clk 0:24:42.1] } 26. Qb1 { [%clk 0:24:28.4] } 26... Qxd4 { [%clk 0:24:02.8] } 27. Rxe4 { [%clk 0:24:32.7] } 27... Bxe5 { [%clk 0:24:02.7] } 28. Rxd4 { [%clk 0:24:34.2] } 28... Bxd4 { [%clk 0:24:10] } 29. Qxb8+ { [%clk 0:24:35.1] } 29... Kg7 { [%clk 0:24:15.2] } 30. c6 { [%clk 0:24:37.1] } 30... f5 { [%clk 0:24:20.7] } 31. c7 { [%clk 0:24:41.7] } 31... Be5 { [%clk 0:24:29.5] } 32. Qa7 { [%clk 0:24:32.5] } 32... Kf6 { [%clk 0:24:31.5] } 33. c8=Q { [%clk 0:24:38.4] } 1-0